fUST/lending_fUST_20240422
["ID","MTS","AMOUNT","RATE_DAILY","PERIOD"]
[323172967,1713769854369,-682.95,0.00023013,2]
[323172968,1713769854378,-500.0,0.00023013,2]
[323172969,1713769854387,-1173.96,0.00023013,2]
[323172970,1713769854396,-500.0,0.00023013,2]
[323172971,1713769854405,-500.0,0.00023013,2]
[323172972,1713769854415,-359.21393406,0.00023013,2]
[323172973,1713769854425,-500.0,0.00023013,2]
[323172974,1713769854434,-500.0,0.00023013,2]
[323172975,1713769854443,-500.0,0.00023013,2]
[323172976,1713769854453,-500.0,0.00023013,2]
[323172977,1713769854462,-804.93,0.00023013,2]
[323172978,1713769854472,-836.55,0.00023013,2]
[323172979,1713769854481,-1527.27,0.00023013,2]
[323172980,1713769854490,-500.0,0.00023013,2]
[323172981,1713769854499,-500.0,0.00023013,2]
[323172982,1713769854509,-670.38,0.00023013,2]
[323172983,1713769854518,-500.0,0.00023013,2]
[323172984,1713769854529,-500.0,0.00023013,2]
[323172985,1713769854539,-500.0,0.00023013,2]
[323172986,1713769854549,-500.0,0.00023013,2]
[323172987,1713769854560,-500.0,0.00023013,2]
[323172988,1713769854570,-500.0,0.00023013,2]
[323172989,1713769854581,-500.0,0.00023013,2]
[323172990,1713769854590,-762.37,0.00023013,2]
[323172991,1713769854599,-500.0,0.00023013,2]
[323172992,1713769854609,-500.0,0.00023013,2]
[323172993,1713769854617,-500.0,0.00023013,2]
[323172994,1713769854627,-500.0,0.00023013,2]
[323172995,1713769854636,-688.67,0.00023013,2]
[323172996,1713769854644,-500.0,0.00023013,2]
[323172997,1713769854653,-560.16,0.00023013,2]
[323172998,1713769854662,-658.87,0.00023013,2]
[323172999,1713769854671,-1149.25,0.00023013,2]
[323173000,1713769854680,-500.0,0.00023013,2]
[323173001,1713769854689,-540.51,0.00023013,2]
[323173002,1713769854698,-317.90042259,0.00023013,2]
[323173003,1713769854707,-820.24,0.00023013,2]
[323173004,1713769854716,-1333.23,0.00023013,2]
[323173005,1713769854725,-500.0,0.00023013,2]
[323173006,1713769854735,-321.46943718,0.00023013,2]
[323173007,1713769854743,-500.0,0.00023013,2]
[323173008,1713769854753,-500.0,0.00023013,2]
[323173009,1713769854762,-500.0,0.00023013,2]
[323173010,1713769854771,-558.0,0.00023013,2]
[323173011,1713769854781,-987.73,0.00023013,2]
[323173012,1713769854789,-503.15,0.00023013,2]
[323173013,1713769854799,-500.0,0.00023013,2]
[323173014,1713769854808,-265.44319917,0.00023013,2]
[323173015,1713769854817,-781.63,0.00023013,2]
[323173016,1713769854828,-2115.92,0.00023013,2]
[323173017,1713769854838,-500.0,0.00023013,2]
[323173018,1713769854847,-1530.06,0.00023013,2]
[323173019,1713769854856,-1749.19,0.00023013,2]
[323173020,1713769854865,-500.0,0.00023013,2]
[323173021,1713769854874,-500.0,0.00023013,2]
[323173022,1713769854883,-500.0,0.00023013,2]
[323173023,1713769854892,-595.67,0.00023013,2]
[323173024,1713769854901,-2269.31,0.00023013,2]
[323173025,1713769854910,-903.32,0.00023013,2]
[323173026,1713769854919,-834.08,0.00023013,2]
[323173027,1713769854928,-633.85423541,0.00023013,2]
[323173028,1713769854937,-3994.58,0.00023013,2]
[323173029,1713769854946,-501.66,0.00023013,2]
[323173030,1713769854956,-792.05,0.00023013,2]
[323173031,1713769854964,-1983.05,0.00023013,2]
[323173032,1713769854974,-500.0,0.00023013,2]
[323173033,1713769854983,-1187.87,0.00023013,2]
[323173034,1713769854991,-954.73,0.00023013,2]
[323173035,1713769855001,-500.0,0.00023013,2]
[323173036,1713769855010,-500.0,0.00023013,2]
[323173037,1713769855019,-500.0,0.00023013,2]
[323173038,1713769855029,-503.41,0.00023013,2]
[323173039,1713769855038,-590.87,0.00023013,2]
[323173040,1713769855047,-797.71,0.00023013,2]
[323173041,1713769855060,-500.0,0.00023013,2]
[323173042,1713769855068,-877.37,0.00023013,2]
[323173043,1713769855079,-688.61,0.00023013,2]
[323173044,1713769855088,-500.0,0.00023013,2]
[323173045,1713769855099,-500.0,0.00023013,2]
[323173046,1713769855108,-2482.35,0.00023013,2]
[323173047,1713769855118,-595.97,0.00023013,2]
[323173048,1713769855127,-667.69,0.00023013,2]
[323173049,1713769855137,-500.0,0.00023013,2]
[323173050,1713769855146,-1158.7,0.00023013,2]
[323173051,1713769855155,-1327.6,0.00023013,2]
[323173052,1713769855164,-505.4,0.00023013,2]
[323173053,1713769855174,-500.0,0.00023013,2]
[323173054,1713769855183,-500.0,0.00023013,2]
[323173055,1713769855192,-899.35,0.00023013,2]
[323173056,1713769855201,-500.0,0.00023013,2]
[323173057,1713769855210,-711.97,0.00023013,2]
[323173058,1713769855219,-500.0,0.00023013,2]
[323173059,1713769855228,-566.31,0.00023013,2]
[323173060,1713769855237,-500.0,0.00023013,2]
[323173061,1713769855246,-1496.05,0.00023013,2]
[323173062,1713769855255,-500.0,0.00023013,2]
[323173063,1713769855264,-626.71,0.00023013,2]
[323173064,1713769855272,-976.61,0.00023013,2]
[323173065,1713769855281,-500.0,0.00023013,2]
[323173066,1713769855290,-500.0,0.00023013,2]
[323173067,1713769855299,-900.91,0.00023013,2]
[323173068,1713769855308,-541.4,0.00023013,2]
[323173069,1713769855317,-681.07,0.00023013,2]
[323173070,1713769855327,-500.0,0.00023013,2]
[323173071,1713769855336,-500.0,0.00023013,2]
[323173072,1713769855345,-500.0,0.00023013,2]
[323173073,1713769855354,-673.2,0.00023013,2]
[323173074,1713769855363,-500.0,0.00023013,2]
[323173075,1713769855372,-500.0,0.00023013,2]
[323173076,1713769855381,-500.0,0.00023013,2]
[323173077,1713769855390,-1746.53,0.00023013,2]
[323173078,1713769855399,-607.39,0.00023013,2]
[323173079,1713769855409,-504.47,0.00023013,2]
[323173080,1713769855419,-643.27,0.00023013,2]
[323173081,1713769855538,-988.89,0.00023013,2]
[323173082,1713769855548,-500.97,0.00023013,2]
[323173083,1713769855557,-500.0,0.00023013,2]
[323173084,1713769855567,-944.92,0.00023013,2]
[323173085,1713769855576,-500.0,0.00023013,2]
[323173086,1713769855585,-500.0,0.00023013,2]
[323173087,1713769855594,-500.0,0.00023013,2]
[323173088,1713769855603,-2391.75,0.00023013,2]
[323173089,1713769855612,-500.0,0.00023013,2]
[323173090,1713769855621,-996.07,0.00023013,2]
[323173091,1713769855630,-500.0,0.00023013,2]
[323173092,1713769855639,-7538.65,0.00023013,2]
[323173093,1713769855649,-500.0,0.00023013,2]
[323173094,1713769855659,-647.95,0.00023013,2]
[323173095,1713769855669,-687.51,0.00023013,2]
[323173096,1713769855679,-696.75,0.00023013,2]
[323173097,1713769855690,-500.0,0.00023013,2]
[323173098,1713769855699,-500.0,0.00023013,2]
[323173099,1713769855708,-2012.31,0.00023013,2]
[323173100,1713769855717,-500.0,0.00023013,2]
[323173101,1713769855726,-500.0,0.00023013,2]
[323173102,1713769855735,-2184.86,0.00023013,2]
[323173103,1713769855744,-500.0,0.00023013,2]
[323173104,1713769855753,-1317.28,0.00023013,2]
[323173105,1713769855764,-3031.98,0.00023013,2]
[323173106,1713769855774,-5454.65,0.00023013,2]
[323173107,1713769855783,-533.6,0.00023013,2]
[323173108,1713769855792,-500.0,0.00023013,2]
[323173109,1713769855800,-646.03,0.00023013,2]
[323173110,1713769855810,-500.0,0.00023013,2]
[323173111,1713769855819,-1894.0,0.00023013,2]
[323173112,1713769855830,-1126.15,0.00023013,2]
[323173113,1713769855839,-1091.86,0.00023013,2]
[323173114,1713769855849,-500.0,0.00023013,2]
[323173115,1713769855858,-995.76,0.00023013,2]
[323173116,1713769855867,-500.0,0.00023013,2]
[323173117,1713769855876,-1577.47,0.00023013,2]
[323173118,1713769855885,-500.0,0.00023013,2]
[323173119,1713769855895,-1400.16,0.00023013,2]
[323173120,1713769855904,-2879.47,0.00023013,2]
[323173121,1713769855913,-863.77,0.00023013,2]
[323173122,1713769855922,-500.0,0.00023013,2]
[323173123,1713769855931,-656.89,0.00023013,2]
[323173124,1713769855942,-500.0,0.00023013,2]
[323173125,1713769855951,-500.0,0.00023013,2]
[323173126,1713769855960,-500.0,0.00023013,2]
[323173127,1713769855970,-2239.64,0.00023013,2]
[323173128,1713769855979,-500.0,0.00023013,2]
[323173129,1713769855988,-500.0,0.00023013,2]
[323173130,1713769855997,-500.0,0.00023013,2]
[323173131,1713769856007,-500.0,0.00023013,2]
[323173132,1713769856016,-934.89,0.00023013,2]
[323173133,1713769856025,-500.0,0.00023013,2]
[323173134,1713769856034,-1150.15,0.00023013,2]
[323173135,1713769856043,-1953.02,0.00023013,2]
[323173136,1713769856055,-500.0,0.00023013,2]
[323173137,1713769856064,-500.0,0.00023013,2]
[323173138,1713769856073,-945.84,0.00023013,2]
[323173139,1713769856087,-500.0,0.00023013,2]
[323173140,1713769856097,-500.0,0.00023013,2]
[323173141,1713769856107,-2068.22,0.00023013,2]
[323173142,1713769856116,-11581.15,0.00023013,2]
[323173143,1713769856126,-1545.27,0.00023013,2]
[323173144,1713769856136,-500.0,0.00023013,2]
[323173145,1713769856146,-1383.0,0.00023013,2]
[323173146,1713769856155,-7505.96,0.00023013,2]
[323173147,1713769856165,-500.0,0.00023013,2]
[323173148,1713769856175,-1080.34,0.00023013,2]
[323173149,1713769856185,-500.0,0.00023013,2]
[323173150,1713769856194,-604.48,0.00023013,2]
[323173151,1713769856204,-500.0,0.00023013,2]
[323173152,1713769856213,-500.73,0.00023013,2]
[323173153,1713769856222,-500.0,0.00023013,2]
[323173154,1713769856232,-848.68,0.00023013,2]
[323173155,1713769856241,-7998.15,0.00023013,2]
[323173156,1713769856251,-1029.26,0.00023013,2]
[323173157,1713769856260,-548.3,0.00023013,2]
[323173158,1713769856269,-500.0,0.00023013,2]
[323173159,1713769856279,-595.36,0.00023013,2]
[323173160,1713769856289,-237.4846105,0.00023013,2]
[323173161,1713769856298,-657.8,0.00023013,2]
[323173162,1713769856307,-1691.5,0.00023013,2]
[323173163,1713769856317,-500.0,0.00023013,2]
[323173164,1713769856332,-602.55,0.00023013,2]
[323173165,1713769856341,-767.06,0.00023013,2]
[323173166,1713769856350,-8749.27925089,0.00023013,2]
[323173167,1713769856633,5703.9440509,0.00020078,2]
[323173168,1713769862581,4239.94216109,0.00020078,10]
[323173169,1713769863524,2596.62045975,0.00020078,10]
[323173231,1713771038555,-549.48258406,0.00020292,2]
[323173232,1713771038564,-364.8548493,0.00020293,2]
[323173233,1713771038574,-300.0,0.00020302,2]
[323173234,1713771038583,-11335.4072932,0.00020303,2]
[323173235,1713771038593,-200.0,0.0002031,2]
[323173236,1713771038603,-369.428781,0.00020396,2]
[323173237,1713771038612,-472.79423154,0.00020913,2]
[323173238,1713771038621,-419.39507495,0.00021815,2]
[323173239,1713771038630,-1745.62939645,0.00021816,2]
[323173240,1713771038640,-2000.0,0.00021817,2]
[323173241,1713771038649,-460.47699786,0.00021817,2]
[323173242,1713771038659,-482.41713152,0.00021915,2]
[323173243,1713771038669,-5000.0,0.00021915,2]
[323173244,1713771038678,-160.45066493,0.00021916,2]
[323173245,1713771038687,-210.18594275,0.00021916,2]
[323173246,1713771038696,-448.51195505,0.00021916,2]
[323173247,1713771038705,-500.0,0.00021916,2]
[323173248,1713771038714,-500.0,0.00021916,2]
[323173249,1713771038724,-227.60037396,0.00021916,2]
[323173250,1713771038733,-313.82922098,0.00021916,2]
[323173251,1713771038742,-311.82873169,0.00021916,2]
[323173252,1713771038751,-500.0,0.00021917,2]
[323173253,1713771038761,-909.83,0.00021917,2]
[323173254,1713771038770,-505.15359985,0.00021917,2]
[323173255,1713771038781,-500.0,0.00021917,2]
[323173256,1713771038790,-500.0,0.00021917,2]
[323173257,1713771038798,-152.5171301,0.00021917,2]
[323173258,1713771038807,-500.0,0.00021917,2]
[323173259,1713771038816,-500.0,0.00021917,2]
[323173260,1713771038825,-500.0,0.00021917,2]
[323173261,1713771038834,-649.35,0.00021917,2]
[323173262,1713771038844,-500.0,0.00021917,2]
[323173263,1713771038853,-781.95,0.00021917,2]
[323173264,1713771038863,-500.0,0.00021917,2]
[323173265,1713771038872,-500.0,0.00021917,2]
[323173266,1713771038882,-500.0,0.00021917,2]
[323173267,1713771038891,-618.79,0.00021917,2]
[323173268,1713771038900,-500.0,0.00021917,2]
[323173269,1713771038909,-500.0,0.00021917,2]
[323173270,1713771038918,-500.0,0.00021917,2]
[323173271,1713771038927,-1676.89,0.00021917,2]
[323173272,1713771038937,-500.0,0.00021917,2]
[323173273,1713771038946,-500.0,0.00021917,2]
[323173274,1713771038956,-178.20100148,0.00021917,2]
[323173275,1713771038965,-500.0,0.00021917,2]
[323173276,1713771038974,-1796.53,0.00021917,2]
[323173277,1713771038983,-500.0,0.00021917,2]
[323173278,1713771038992,-500.0,0.00021917,2]
[323173279,1713771039001,-622.76421091,0.00021917,2]
[323173280,1713771039010,-500.0,0.00021917,2]
[323173281,1713771039019,-500.0,0.00021917,2]
[323173282,1713771039030,-504.82378182,0.00021917,2]
[323173283,1713771039040,-500.0,0.00021917,2]
[323173284,1713771039049,-500.0,0.00021917,2]
[323173285,1713771039058,-500.0,0.00021917,2]
[323173286,1713771039067,-500.0,0.00021917,2]
[323173287,1713771039076,-500.0,0.00021917,2]
[323173288,1713771039085,-554.96398746,0.00021917,2]
[323173289,1713771039094,-500.0,0.00021917,2]
[323173290,1713771039103,-518.32428352,0.00021917,2]
[323173291,1713771039112,-500.0,0.00021917,2]
[323173292,1713771039121,-500.0,0.00021917,2]
[323173293,1713771039130,-508.12802659,0.00021917,2]
[323173294,1713771039140,-500.0,0.00021917,2]
[323173295,1713771039149,-169.37155114,0.00021917,2]
[323173296,1713771039158,-280.8049058,0.00021917,2]
[323173297,1713771039167,-588.17450781,0.00021917,2]
[323173298,1713771039176,-532.06,0.00021917,2]
[323173299,1713771039185,-500.0,0.00021917,2]
[323173300,1713771039194,-528.59,0.00021917,2]
[323173301,1713771039203,-519.3781021,0.00021917,2]
[323173302,1713771039211,-500.0,0.00021917,2]
[323173303,1713771039221,-510.11,0.00021917,2]
[323173304,1713771039230,-563.65,0.00021917,2]
[323173305,1713771039239,-500.0,0.00021917,2]
[323173306,1713771039247,-500.0,0.00021917,2]
[323173307,1713771039256,-1715.53,0.00021917,2]
[323173308,1713771039265,-500.0,0.00021917,2]
[323173309,1713771039276,-500.0,0.00021917,2]
[323173310,1713771039285,-838.09,0.00021917,2]
[323173311,1713771039293,-500.0,0.00021917,2]
[323173312,1713771039303,-500.0,0.00021917,2]
[323173313,1713771039313,-500.0,0.00021917,2]
[323173314,1713771039322,-500.0,0.00021917,2]
[323173315,1713771039332,-2000.0,0.00021917,2]
[323173316,1713771039341,-1211.3,0.00021917,2]
[323173317,1713771039350,-539.18,0.00021917,2]
[323173318,1713771039358,-500.0,0.00021917,2]
[323173319,1713771039367,-500.0,0.00021917,2]
[323173320,1713771039377,-500.0,0.00021917,2]
[323173321,1713771039386,-500.0,0.00021917,2]
[323173322,1713771039396,-500.0,0.00021917,2]
[323173323,1713771039405,-423.90741455,0.00021917,2]
[323173324,1713771039415,-600.43351323,0.00021917,2]
[323173325,1713771039426,-500.0,0.00021917,2]
[323173326,1713771039435,-1791.31,0.00021917,2]
[323173327,1713771039446,-1485.02,0.00021917,2]
[323173328,1713771039457,-500.0,0.00021917,2]
[323173329,1713771039466,-500.0,0.00021917,2]
[323173330,1713771039476,-500.0,0.00021917,2]
[323173331,1713771039486,-765.95,0.00021917,2]
[323173332,1713771039495,-500.0,0.00021917,2]
[323173333,1713771039505,-504.78648204,0.00021917,2]
[323173334,1713771039515,-672.43,0.00021917,2]
[323173335,1713771039526,-500.0,0.00021917,2]
[323173336,1713771039535,-500.0,0.00021917,2]
[323173337,1713771039544,-501.23020246,0.00021917,2]
[323173338,1713771039554,-500.0,0.00021917,2]
[323173339,1713771039563,-500.0,0.00021917,2]
[323173340,1713771039572,-703.56,0.00021917,2]
[323173341,1713771039581,-810.54,0.00021917,2]
[323173342,1713771039591,-500.0,0.00021917,2]
[323173343,1713771039600,-500.0,0.00021917,2]
[323173344,1713771039609,-500.0,0.00021917,2]
[323173345,1713771039618,-300.05130895,0.00021917,2]
[323173346,1713771039627,-500.0,0.00021917,2]
[323173347,1713771039638,-1339.24,0.00021917,2]
[323173348,1713771039647,-500.0,0.00021917,2]
[323173349,1713771039657,-500.0,0.00021917,2]
[323173351,1713771039666,-3162.37,0.00021917,2]
[323173353,1713771039675,-500.0,0.00021917,2]
[323173355,1713771039684,-500.0,0.00021917,2]
[323173357,1713771039694,-500.0,0.00021917,2]
[323173359,1713771039703,-1126.55,0.00021917,2]
[323173361,1713771039713,-940.4,0.00021917,2]
[323173363,1713771039722,-500.0,0.00021917,2]
[323173364,1713771039731,-584.61,0.00021917,2]
[323173365,1713771039740,-500.0,0.00021917,2]
[323173366,1713771039749,-500.0,0.00021917,2]
[323173367,1713771039759,-621.29040509,0.00021917,2]
[323173368,1713771039768,-500.0,0.00021917,2]
[323173369,1713771039777,-500.0,0.00021917,2]
[323173370,1713771039787,-500.0,0.00021917,2]
[323173371,1713771039796,-2107.45,0.00021917,2]
[323173372,1713771039805,-500.0,0.00021917,2]
[323173373,1713771039814,-1238.19,0.00021917,2]
[323173374,1713771039822,-500.0,0.00021917,2]
[323173375,1713771039831,-631.52,0.00021917,2]
[323173376,1713771039840,-500.0,0.00021917,2]
[323173377,1713771039849,-500.0,0.00021917,2]
[323173378,1713771039858,-500.0,0.00021917,2]
[323173379,1713771039867,-500.0,0.00021917,2]
[323173380,1713771039876,-500.0,0.00021917,2]
[323173381,1713771039884,-500.0,0.00021917,2]
[323173382,1713771039894,-694.59,0.00021917,2]
[323173383,1713771039903,-500.0,0.00021917,2]
[323173384,1713771039913,-500.0,0.00021917,2]
[323173385,1713771039922,-500.0,0.00021917,2]
[323173386,1713771039931,-500.0,0.00021917,2]
[323173387,1713771039940,-500.0,0.00021917,2]
[323173388,1713771039950,-509.44398326,0.00021917,2]
[323173389,1713771039959,-500.0,0.00021917,2]
[323173390,1713771039967,-1436.04,0.00021917,2]
[323173391,1713771039976,-532.95,0.00021917,2]
[323173392,1713771039985,-500.0,0.00021917,2]
[323173393,1713771039994,-500.0,0.00021917,2]
[323173394,1713771040003,-500.0,0.00021917,2]
[323173395,1713771040013,-500.0,0.00021917,2]
[323173396,1713771040022,-651.21,0.00021917,2]
[323173397,1713771040033,-500.0,0.00021917,2]
[323173398,1713771040043,-500.0,0.00021917,2]
[323173399,1713771040053,-500.0,0.00021917,2]
[323173400,1713771040062,-500.0,0.00021917,2]
[323173401,1713771040071,-500.0,0.00021917,2]
[323173402,1713771040081,-983.71,0.00021917,2]
[323173403,1713771040091,-500.0,0.00021917,2]
[323173404,1713771040100,-500.0,0.00021917,2]
[323173405,1713771040109,-500.0,0.00021917,2]
[323173406,1713771040119,-748.79,0.00021917,2]
[323173407,1713771040128,-500.0,0.00021917,2]
[323173408,1713771040138,-773.15,0.00021917,2]
[323173409,1713771040147,-500.0,0.00021917,2]
[323173410,1713771040156,-1482.76,0.00021917,2]
[323173411,1713771040166,-500.0,0.00021917,2]
[323173412,1713771040176,-500.0,0.00021917,2]
[323173413,1713771040185,-500.0,0.00021917,2]
[323173414,1713771040195,-713.22,0.00021917,2]
[323173415,1713771040204,-512.04698451,0.00021917,2]
[323173416,1713771040214,-500.0,0.00021917,2]
[323173417,1713771040224,-500.0,0.00021917,2]
[323173418,1713771040234,-500.0,0.00021917,2]
[323173419,1713771040244,-500.0,0.00021917,2]
[323173420,1713771040253,-500.0,0.00021917,2]
[323173421,1713771040262,-500.0,0.00021917,2]
[323173422,1713771040273,-520.76,0.00021917,2]
[323173423,1713771040285,-500.0,0.00021917,2]
[323173424,1713771040294,-500.0,0.00021917,2]
[323173425,1713771040304,-500.0,0.00021917,2]
[323173426,1713771040313,-500.0,0.00021917,2]
[323173427,1713771040322,-500.0,0.00021917,2]
[323173428,1713771040332,-845.63,0.00021917,2]
[323173429,1713771040341,-500.0,0.00021917,2]
[323173430,1713771040351,-500.0,0.00021917,2]
[323173431,1713771040360,-500.0,0.00021917,2]
[323173432,1713771040370,-500.0,0.00021917,2]
[323173433,1713771040380,-500.0,0.00021917,2]
[323173434,1713771040390,-546.12,0.00021917,2]
[323173435,1713771040400,-500.0,0.00021917,2]
[323173436,1713771040410,-657.75,0.00021917,2]
[323173437,1713771040419,-1593.07,0.00021917,2]
[323173438,1713771040429,-296.60357415,0.00021917,2]
[323173439,1713771040442,-540.67,0.00021917,2]
[323173440,1713771040456,-788.31,0.00021917,2]
[323173441,1713771040467,-1886.84,0.00021917,2]
[323173442,1713771040476,-500.0,0.00021917,2]
[323173443,1713771040488,-500.0,0.00021917,2]
[323173444,1713771040497,-1320.93,0.00021917,2]
[323173445,1713771040506,-500.0,0.00021917,2]
[323173446,1713771040515,-1499.42,0.00021917,2]
[323173447,1713771040528,-551.6,0.00021917,2]
[323173448,1713771040537,-500.0,0.00021917,2]
[323173449,1713771040546,-512.96,0.00021917,2]
[323173450,1713771040555,-500.0,0.00021917,2]
[323173451,1713771040565,-2279.58,0.00021917,2]
[323173452,1713771040575,-500.0,0.00021917,2]
[323173453,1713771040584,-2400.32,0.00021917,2]
[323173454,1713771040594,-500.0,0.00021917,2]
[323173455,1713771040603,-1042.84,0.00021917,2]
[323173456,1713771040613,-987.76,0.00021917,2]
[323173457,1713771040622,-500.0,0.00021917,2]
[323173458,1713771040630,-500.0,0.00021917,2]
[323173459,1713771040639,-891.53,0.00021917,2]
[323173460,1713771040649,-500.0,0.00021917,2]
[323173461,1713771040658,-427.16289908,0.00021917,2]
[323173462,1713771040668,-662.27,0.00021917,2]
[323173463,1713771040677,-500.0,0.00021917,2]
[323173464,1713771040686,-544.28,0.00021917,2]
[323173465,1713771040696,-500.0,0.00021917,2]
[323173466,1713771040706,-500.0,0.00021917,2]
[323173467,1713771040716,-1893.47,0.00021917,2]
[323173468,1713771040725,-500.0,0.00021917,2]
[323173469,1713771040734,-1209.09,0.00021917,2]
[323173470,1713771040745,-1729.68,0.00021917,2]
[323173471,1713771040755,-520.04,0.00021917,2]
[323173472,1713771040764,-530.72,0.00021917,2]
[323173473,1713771040773,-5968.09,0.00021917,2]
[323173474,1713771040785,-500.0,0.00021917,2]
[323173475,1713771040795,-814.84,0.00021917,2]
[323173476,1713771040804,-4318.26,0.00021917,2]
[323173477,1713771040816,-327.21635161,0.00021917,2]
[323173478,1713771040826,-855.27,0.00021917,2]
[323173479,1713771040835,-500.0,0.00021917,2]
[323173480,1713771040844,-8414.55,0.00021917,2]
[323173481,1713771040854,-1637.34,0.00021917,2]
[323173482,1713771040864,-500.0,0.00021917,2]
[323173483,1713771040873,-500.0,0.00021917,2]
[323173484,1713771040884,-511.45,0.00021917,2]
[323173485,1713771040894,-500.0,0.00021917,2]
[323173486,1713771040903,-5942.22,0.00021917,2]
[323173487,1713771040912,-500.0,0.00021917,2]
[323173488,1713771040922,-1481.71,0.00021917,2]
[323173489,1713771040931,-500.0,0.00021917,2]
[323173490,1713771040942,-864.39,0.00021917,2]
[323173491,1713771040953,-500.0,0.00021917,2]
[323173492,1713771040962,-500.0,0.00021917,2]
[323173493,1713771040971,-599.44,0.00021917,2]
[323173494,1713771040981,-929.38,0.00021917,2]
[323173495,1713771040990,-500.0,0.00021917,2]
[323173496,1713771041000,-824.57,0.00021917,2]
[323173497,1713771041009,-500.0,0.00021917,2]
[323173498,1713771041019,-683.82,0.00021917,2]
[323173499,1713771041028,-6331.87,0.00021917,2]
[323173500,1713771041038,-740.12,0.00021917,2]
[323173501,1713771041047,-1229.03,0.00021917,2]
[323173502,1713771041056,-500.0,0.00021917,2]
[323173503,1713771041065,-500.0,0.00021917,2]
[323173504,1713771041075,-617.10962198,0.00021917,2]
[323173505,1713771041084,-1773.05,0.00021917,2]
[323173506,1713771041094,-500.0,0.00021917,2]
[323173507,1713771041103,-500.0,0.00021917,2]
[323173508,1713771041112,-500.0,0.00021917,2]
[323173509,1713771041121,-9168.41,0.00021917,2]
[323173510,1713771041130,-500.0,0.00021917,2]
[323173511,1713771041140,-500.0,0.00021917,2]
[323173512,1713771041149,-500.0,0.00021917,2]
[323173513,1713771041159,-603.54,0.00021917,2]
[323173514,1713771041168,-545.2,0.00021917,2]
[323173515,1713771041177,-637.24,0.00021917,2]
[323173516,1713771041187,-500.0,0.00021917,2]
[323173517,1713771041196,-500.0,0.00021917,2]
[323173518,1713771041206,-514.42969821,0.00021917,2]
[323173519,1713771041215,-910.54,0.00021917,2]
[323173520,1713771041225,-671.87,0.00021917,2]
[323173521,1713771041234,-1223.34,0.00021917,2]
[323173522,1713771041243,-5648.11,0.00021917,2]
[323173523,1713771041253,-816.69,0.00021917,2]
[323173524,1713771041263,-500.0,0.00021917,2]
[323173525,1713771041272,-1094.87,0.00021917,2]
[323173526,1713771041284,-616.09003582,0.00021917,2]
[323173527,1713771041293,-545.02829371,0.00021917,2]
[323173528,1713771041302,-588.86117877,0.00021917,2]
[323173529,1713771041312,-500.0,0.00021917,2]
[323173530,1713771041322,-500.0,0.00021917,2]
[323173531,1713771041332,-500.0,0.00021917,2]
[323173532,1713771041341,-4561.56,0.00021917,2]
[323173533,1713771041350,-500.0,0.00021917,2]
[323173534,1713771041361,-500.0,0.00021917,2]